bitfinex/quotes_SOLUSD_20220114
["timestamp","ask_amount","ask_price","bid_price","bid_amount"]
[1642167995469,16.3855,144.49,144.42,30.18412253]
[1642167996472,37.387,144.5,144.49,23.6145]
[1642167996778,37.387,144.5,144.4,2.767]
[1642167996779,23.6099,144.49,144.4,2.767]
[1642167996973,2.769,144.48,144.39,1.52266543]
[1642167997178,10.3891,144.45,144.34,49.3198]
[1642167997372,2.77,144.44,144.34,49.3198]
[1642167997572,2.77,144.48,144.34,22.847]
[1642167997772,2.77,144.48,144.35,24.47125841]
[1642167998375,10.3909,144.4,144.35,24.47125841]
[1642167999276,48.8214,144.48,144.35,24.47125841]
[1642167999475,48.8214,144.48,144.35,41.37055841]
[1642167999476,10.3872,144.45,144.35,41.37055841]
[1642167999675,6.0,144.48,144.35,41.37055841]
[1642168000074,2.769,144.51,144.35,41.37055841]
[1642168000274,19.41195098,144.51,144.36,23.2805]
[1642168000474,19.41195098,144.51,144.36,29.7905]
[1642168000674,10.386,144.47,144.36,64.4112]
[1642168000878,10.386,144.47,144.37,2.769]
[1642168001074,10.386,144.47,144.37,9.019]
[1642168001478,10.386,144.47,144.37,2.769]
[1642168001876,2.769,144.46,144.36,33.6693]
[1642168002075,10.389,144.43,144.36,39.6693]
[1642168002474,10.389,144.43,144.36,29.2805]
[1642168003376,10.389,144.43,144.36,6.0]
[1642168003576,10.389,144.43,144.35,30.47125841]
[1642168003776,10.389,144.43,144.35,30.72125841]
[1642168004079,10.389,144.43,144.34,2.769]
[1642168004381,10.3933,144.38,144.33,24.3489]
[1642168004575,10.3933,144.38,144.31,2.77]
[1642168004576,10.3933,144.38,144.3,22.8391]
[1642168004977,10.3933,144.38,144.31,27.10281448]
[1642168005378,10.3933,144.38,144.3,22.8391]
[1642168005776,16.3933,144.38,144.3,22.8391]
[1642168005979,16.3933,144.38,144.28,2.771]
[1642168006175,16.3933,144.38,144.27,47.5021]
[1642168006176,88.6643,144.38,144.27,50.2731]
[1642168006378,19.1643,144.38,144.28,25.92544793]
[1642168006577,10.3965,144.33,144.28,31.92544793]
[1642168006780,10.3965,144.33,144.27,26.8571]
[1642168006980,10.3965,144.33,144.25,2.771]
[1642168007178,10.3965,144.33,144.24,23.3384]
[1642168007780,3.40683785,144.32,144.23,30.92999634]
[1642168007980,10.4017,144.28,144.23,30.92999634]
[1642168008781,48.05263785,144.32,144.23,30.92999634]
[1642168008980,2.771,144.31,144.23,30.92999634]
[1642168009180,10.3996,144.29,144.23,30.92999634]
[1642168009782,9.98,144.32,144.23,30.92999634]
[1642168009983,2.771,144.35,144.23,37.17999634]
[1642168010182,13.94171125,144.36,144.24,2.771]
[1642168010382,24.33661125,144.36,144.24,2.771]
[1642168010583,24.33661125,144.36,144.24,8.771]
[1642168010785,20.3749,144.36,144.24,8.771]
[1642168011185,26.3749,144.36,144.24,2.771]
[1642168011385,10.3998,144.3,144.22,6.30780399]
[1642168011587,10.3998,144.3,144.22,3.53680399]
[1642168011809,12.751,144.29,144.22,3.53680399]
[1642168012415,3.28728947,144.28,144.22,3.53680399]
[1642168012611,12.751,144.27,144.22,3.53680399]
[1642168012811,10.4047,144.26,144.22,3.53680399]
[1642168013012,2.773,144.25,144.22,3.53680399]
[1642168013212,62.0,144.23,144.17,5.11467072]
[1642168013414,64.773,144.23,144.17,3.82159001]
[1642168013612,62.0,144.23,144.17,3.82159001]
[1642168013812,10.4091,144.2,144.17,3.82159001]
[1642168014411,6.06439994,144.19,144.17,3.82159001]
[1642168014814,10.4088,144.18,144.17,3.82159001]
[1642168015011,10.4088,144.18,144.11,2.773]
[1642168016314,10.4088,144.18,144.12,3.8649668]
[1642168017114,10.4072,144.2,144.12,3.8649668]
[1642168017316,10.4072,144.2,144.14,22.75705351]
[1642168017512,10.4072,144.2,144.14,23.00705351]
[1642168017713,10.4072,144.2,144.14,29.00705351]
[1642168018113,14.49180525,144.22,144.14,23.00705351]
[1642168019013,9.98,144.23,144.14,23.00705351]
[1642168020217,9.98,144.23,144.14,22.75705351]
[1642168020418,2.774,144.24,144.15,2.774]
[1642168020620,2.774,144.24,144.15,12.754]
[1642168020819,2.774,144.24,144.15,19.264]
[1642168021218,2.774,144.24,144.16,3.87340505]
[1642168021419,2.774,144.24,144.17,2.773]
[1642168021618,17.88013518,144.3,144.17,2.773]
[1642168021619,12.753,144.29,144.17,2.773]
[1642168021819,12.753,144.29,144.17,6.0]
[1642168022321,12.753,144.29,144.18,3.87340505]
[1642168022519,14.45377588,144.29,144.18,3.87340505]
[1642168023121,10.4022,144.27,144.18,3.87340505]
[1642168023319,20.3822,144.27,144.18,0.25]
[1642168023521,20.3822,144.27,144.16,12.64640505]
[1642168023722,20.3822,144.27,144.16,12.89640505]
[1642168023921,8.773,144.29,144.16,13.15640505]
[1642168024121,2.773,144.29,144.16,9.283]
[1642168024824,13.1738,144.29,144.16,8.773]
[1642168025022,9.98,144.28,144.17,3.91038148]
[1642168025222,2.773,144.27,144.17,3.91038148]
[1642168025422,2.773,144.27,144.17,9.91038148]
[1642168025825,10.4031,144.26,144.18,2.773]
[1642168026024,10.4031,144.26,144.18,0.25]
[1642168026224,10.4031,144.26,144.17,12.68338148]
[1642168026425,10.4031,144.26,144.17,9.91038148]
[1642168026629,2.773,144.25,144.17,10.16038148]
[1642168026827,10.4031,144.26,144.17,10.16038148]
[1642168027027,10.4031,144.26,144.17,9.91038148]
[1642168027226,10.4031,144.26,144.17,10.16038148]
[1642168027429,10.4031,144.26,144.17,6.25]
[1642168027627,10.4031,144.26,144.18,2.773]
[1642168028027,10.4015,144.28,144.18,3.023]
[1642168028228,17.88013518,144.3,144.18,3.023]
[1642168028428,17.88013518,144.3,144.18,12.9289695]
[1642168028629,20.65313518,144.3,144.18,12.9289695]
[1642168028830,20.65313518,144.3,144.18,13.1889695]
[1642168029432,10.4005,144.29,144.18,23.5896695]
[1642168029829,10.4005,144.29,144.21,1.94867053]
[1642168030334,2.771,144.28,144.21,1.94867053]
[1642168030529,13.1725,144.28,144.21,1.94867053]
[1642168032129,15.15667643,144.28,144.19,25.01799718]
[1642168032930,4.75717643,144.29,144.19,25.26799718]
[1642168033132,1.98417643,144.29,144.2,4.72167053]
[1642168033631,1.98417643,144.29,144.2,5.23167053]
[1642168034030,1.98417643,144.29,144.21,10.3982]
[1642168034232,1.98417643,144.31,144.23,1.94867053]
[1642168034532,1.98417643,144.31,144.24,2.771]
[1642168034730,8.71484851,144.38,144.25,75.0]
[1642168034932,5.94384851,144.38,144.26,11.091]
[1642168035133,5.94384851,144.38,144.26,61.44495951]
[1642168035335,5.94384851,144.38,144.26,67.95495951]
[1642168035535,5.94384851,144.38,144.26,78.08955951]
[1642168035734,25.63646239,144.39,144.26,63.51955951]
[1642168035933,2.771,144.38,144.26,60.74855951]
[1642168036134,2.771,144.38,144.26,50.35395951]
[1642168036738,82.6647,144.38,144.26,50.35395951]
[1642168036938,17.13052283,144.38,144.26,50.35395951]
[1642168037740,17.13052283,144.38,144.26,60.74925951]
[1642168038166,86.63052283,144.38,144.26,60.74925951]
[1642168038568,86.63052283,144.38,144.26,50.35395951]
[1642168038971,82.6647,144.38,144.26,50.35395951]
[1642168039271,13.1647,144.38,144.26,50.35395951]
[1642168039472,13.1647,144.38,144.26,50.60395951]
[1642168039671,13.1635,144.4,144.26,50.86395951]
[1642168039871,5.94384851,144.41,144.27,8.32]
[1642168040071,5.94384851,144.41,144.27,8.83]
[1642168040474,17.76590993,144.4,144.31,10.3914]
[1642168040871,17.76590993,144.4,144.32,24.57713204]
[1642168041076,5.94384851,144.41,144.32,24.82713204]
[1642168041077,10.3914,144.41,144.32,24.82713204]
[1642168041274,10.3914,144.41,144.32,27.59713204]
[1642168041574,10.3914,144.41,144.32,24.82713204]
[1642168041974,10.3914,144.41,144.32,24.57713204]
[1642168041975,29.31463937,144.41,144.32,24.57713204]
[1642168042376,29.31463937,144.41,144.32,34.96813204]
[1642168042577,29.31463937,144.41,144.3,25.9021]
[1642168042781,10.3939,144.38,144.29,23.495]
[1642168043678,10.3939,144.38,144.27,2.771]
[1642168043880,2.771,144.37,144.26,29.026]
[1642168044080,10.3962,144.34,144.26,29.026]
[1642168044281,0.43121862,144.33,144.26,29.026]
[1642168046683,10.3962,144.34,144.26,29.026]
[1642168046885,2.771,144.37,144.26,108.9214]
[1642168047086,8.32,144.41,144.27,2.771]
[1642168047287,2.771,144.4,144.28,48.6738]
[1642168047486,20.26384851,144.41,144.29,2.771]
[1642168047785,17.09226251,144.4,144.31,10.3916]
[1642168047988,19.86226251,144.4,144.31,10.3916]
[1642168049386,30.25446251,144.4,144.31,10.3916]
[1642168050890,30.25446251,144.4,144.3,41.29115357]
[1642168051488,30.25446251,144.4,144.3,41.54115357]
[1642168051888,30.25446251,144.4,144.3,41.29115357]
[1642168052089,36.25446251,144.4,144.3,41.29115357]
[1642168052391,33.48446251,144.4,144.3,41.29115357]
[1642168052589,33.48446251,144.4,144.3,47.29115357]
[1642168052789,33.48446251,144.4,144.3,41.29115357]
[1642168052989,27.48446251,144.4,144.3,41.29115357]
[1642168053590,33.48446251,144.4,144.3,41.29115357]
[1642168053989,41.80446251,144.4,144.3,41.29115357]
[1642168054489,35.80446251,144.4,144.3,41.29115357]
[1642168054690,2.771,144.39,144.3,41.29115357]
[1642168054890,10.3931,144.38,144.3,41.29115357]
[1642168055491,2.771,144.39,144.3,41.29115357]
[1642168055688,34.18326251,144.4,144.3,41.29115357]
[1642168056092,28.18326251,144.4,144.3,41.29115357]
[1642168056290,28.18326251,144.4,144.3,47.29115357]
[1642168056489,10.3921,144.39,144.3,41.29115357]
[1642168057220,10.3921,144.39,144.29,10.3938]
[1642168057421,10.3938,144.37,144.29,10.3938]
[1642168058221,10.3938,144.37,144.29,29.30747189]
[1642168058425,10.3938,144.37,144.28,48.6738]
[1642168058623,10.3982,144.31,144.23,2.771]
[1642168058821,10.3982,144.31,144.22,7.88567072]
[1642168059020,10.3982,144.31,144.22,5.11467072]
[1642168059424,12.66039548,144.31,144.22,31.47720405]
[1642168059724,12.66039548,144.31,144.22,41.87610405]
[1642168059921,12.66039548,144.31,144.23,3.96589652]
[1642168060124,10.4,144.28,144.23,3.96589652]
[1642168060822,10.4,144.28,144.21,2.771]
[1642168063024,10.4,144.28,144.19,10.4011]
[1642168063225,20.42077588,144.28,144.17,3.22683349]
[1642168063425,72.273,144.27,144.17,0.45383349]
[1642168063726,10.4049,144.22,144.17,0.45383349]
[1642168064524,11.094,144.26,144.17,0.45383349]
[1642168065327,10.4033,144.24,144.17,0.45383349]
[1642168068526,10.4061,144.2,144.17,0.45383349]
[1642168068726,3.03219997,144.19,144.17,0.45383349]
[1642168068928,6.06439994,144.19,144.17,0.45383349]
[1642168071435,16.47009994,144.19,144.17,0.45383349]
[1642168077941,6.06439994,144.19,144.17,0.45383349]
[1642168079050,10.4021,144.23,144.18,39.0]
[1642168079456,17.49921514,144.26,144.19,26.26555239]
[1642168079457,37.4488,144.26,144.19,26.26555239]
[1642168079646,11.093,144.29,144.19,26.26555239]
[1642168080047,8.32,144.29,144.19,26.26555239]
[1642168080448,14.97236632,144.28,144.19,26.26555239]
[1642168081051,10.4005,144.25,144.17,10.85483349]
[1642168081249,10.4005,144.25,144.17,0.45383349]
[1642168081852,10.4005,144.25,144.14,27.5165]
[1642168082052,10.4005,144.25,144.15,30.49532564]
[1642168082254,10.4005,144.25,144.14,27.5165]
[1642168082655,2.774,144.24,144.14,24.7425]
[1642168082856,10.4064,144.19,144.14,24.7425]
[1642168083075,10.4064,144.19,144.11,26.5382]
[1642168083278,14.78849167,144.19,144.11,26.5382]
[1642168083676,14.78849167,144.19,144.11,23.7642]
[1642168083877,17.56249167,144.19,144.11,23.7642]
[1642168084680,17.56249167,144.19,144.09,26.0156]
[1642168084879,14.78849167,144.19,144.09,26.0156]
[1642168085280,23.10849167,144.19,144.09,26.0156]
[1642168085680,23.10849167,144.19,144.09,2.774]
[1642168086084,10.412,144.14,144.09,2.774]
[1642168086985,14.97236632,144.13,144.09,2.774]
[1642168087183,14.97236632,144.13,144.04,2.775]
[1642168087384,10.4118,144.11,144.03,29.76527072]
[1642168087984,10.4118,144.11,144.03,24.6506]
[1642168090385,20.4018,144.11,144.03,24.6506]
[1642168090985,20.4018,144.11,144.01,22.5481]
[1642168091684,69.5,144.1,144.0,2.775]
[1642168091884,10.4162,144.04,143.99,5.11467072]
[1642168092085,4.38209167,144.03,143.99,5.11467072]
[1642168092684,4.38209167,144.03,143.97,24.7164]
[1642168092885,14.79919167,144.03,143.96,7.89167072]
[1642168093686,10.4171,144.03,143.97,3.97258281]
[1642168094687,25.32804806,144.03,143.97,3.97258281]
[1642168097590,25.32804806,144.03,143.95,2.777]
[1642168097791,25.32804806,144.03,143.94,2.777]
[1642168098692,35.31804806,144.03,143.95,3.97352652]
[1642168098891,2.777,144.02,143.95,3.97352652]
[1642168099092,10.4205,143.99,143.95,3.97352652]
[1642168099693,10.4205,143.99,143.93,47.4284]
[1642168099893,10.4205,143.99,143.9,5.11467072]
[1642168100595,10.4205,143.99,143.89,2.777]
[1642168100793,10.4205,143.99,143.9,14.39439226]
[1642168101194,10.4205,143.99,143.9,20.39439226]
[1642168101394,10.4205,143.99,143.91,3.97429226]
[1642168102595,10.4205,143.99,143.92,2.778]
[1642168103498,10.4205,143.99,143.92,6.7518608]
[1642168103696,10.4205,143.99,143.92,3.9738608]
[1642168104196,10.4205,143.99,143.93,7.94815306]
[1642168105196,10.4205,143.99,143.93,3.9738608]
[1642168109698,10.4205,143.99,143.93,7.94815306]
[1642168110902,10.4205,143.99,143.91,7.94815306]
[1642168112003,10.4205,143.99,143.91,8.20815306]
[1642168112407,10.4205,143.99,143.91,7.94815306]
[1642168112607,9.99,143.98,143.91,7.94815306]
[1642168112808,10.4259,143.95,143.91,7.94815306]
[1642168113016,10.4259,143.95,143.92,3.97429226]
[1642168113408,4.44350993,143.94,143.92,3.97429226]
[1642168113908,10.4257,143.93,143.92,3.97429226]
[1642168114308,10.4257,143.93,143.89,3.9738608]
[1642168116413,10.4257,143.93,143.88,2.64015282]
[1642168116613,9.60294782,143.91,143.88,2.64015282]
[1642168116841,10.4295,143.9,143.88,3.97511442]
[1642168118244,10.4295,143.9,143.88,10.03951436]
[1642168118543,9.99,143.96,143.88,10.03951436]
[1642168118744,9.99,143.96,143.88,8.84339994]
[1642168118944,9.99,143.96,143.88,9.10339994]
[1642168119144,11.44463298,143.95,143.88,8.84339994]
[1642168119943,10.4245,143.94,143.88,8.84339994]
[1642168120146,10.4245,143.94,143.88,6.06439994]
[1642168120747,10.4245,143.94,143.87,1e-08]
[1642168122147,13.2035,143.94,143.87,1e-08]
[1642168123648,10.4245,143.94,143.87,1e-08]
[1642168124248,16.4245,143.94,143.87,1e-08]
[1642168129959,2.779,143.93,143.87,1e-08]
[1642168130159,10.4276,143.9,143.87,1e-08]
[1642168131161,10.4276,143.9,143.88,6.06439994]
[1642168131463,14.29067672,143.92,143.88,6.06439994]
[1642168131663,3.86497672,143.92,143.88,6.06439994]
[1642168131861,12.769,143.95,143.87,1e-08]
[1642168132563,10.4262,143.91,143.87,1e-08]
[1642168133961,54.43784957,143.9,143.87,1e-08]
[1642168134364,64.86504957,143.9,143.87,1e-08]
[1642168139996,10.4272,143.9,143.87,1e-08]
[1642168140797,10.4272,143.9,143.88,3.03219997]
[1642168140997,10.4272,143.9,143.87,1e-08]
[1642168143101,13.2044,143.92,143.87,1e-08]
[1642168143305,23.1071,143.96,143.87,1e-08]
[1642168143504,31.8861,143.96,143.87,1e-08]
[1642168143902,12.13946543,143.95,143.87,1e-08]
[1642168145103,10.4241,143.93,143.87,1e-08]
[1642168149112,1.90699232,143.92,143.87,1e-08]
[1642168149313,10.4264,143.9,143.87,1e-08]
[1642168151017,10.4252,143.92,143.88,6.06439994]
[1642168151520,12.10776284,143.91,143.88,6.06439994]
[1642168152118,22.53306284,143.91,143.87,1e-08]
[1642168152419,13.2043,143.91,143.87,1e-08]
[1642168152617,13.2043,143.91,143.81,25.9562]
[1642168153117,19.2043,143.91,143.81,25.9562]
[1642168153319,12.46338988,143.9,143.81,23.1772]
[1642168153519,10.4299,143.86,143.81,23.1772]
[1642168153719,1.58306787,143.85,143.81,23.1772]
[1642168155342,12.01306787,143.85,143.81,23.1772]
[1642168155543,12.01306787,143.85,143.79,2.779]
[1642168155742,12.01306787,143.85,143.82,1.98827446]
[1642168156343,12.01306787,143.85,143.79,2.779]
[1642168156746,14.79406787,143.85,143.79,2.779]
[1642168157144,9.99,143.84,143.75,5.11467072]
[1642168157343,2.781,143.83,143.75,5.11467072]
[1642168157543,10.4357,143.79,143.73,2.82295698]
[1642168157744,77.782,143.78,143.67,9.77879458]
[1642168157945,9.99,143.77,143.67,9.77879458]
[1642168158145,12.95467614,143.76,143.67,9.77879458]
[1642168158344,22.94467614,143.76,143.67,9.77879458]
[1642168158545,10.4406,143.73,143.67,9.77879458]
[1642168158846,2.783,143.72,143.67,9.77879458]
[1642168159044,2.783,143.73,143.67,9.77879458]
[1642168159444,1.58306787,143.72,143.62,26.5495]
[1642168159643,1.58306787,143.72,143.63,0.25]
[1642168159845,7.58306787,143.72,143.64,2.783]
[1642168160046,7.58306787,143.72,143.63,3.033]
[1642168160546,10.17167614,143.69,143.63,6.51]
[1642168161146,34.8065,143.72,143.63,6.51]
[1642168161348,34.8065,143.72,143.63,0.26]
[1642168161547,34.8065,143.72,143.63,6.0]
[1642168161951,10.4406,143.7,143.62,29.7665]
[1642168162354,10.4406,143.7,143.63,0.02]
[1642168163251,64.95758887,143.7,143.63,0.02]
[1642168163651,73.78482975,143.7,143.63,0.02]
[1642168163851,64.95758887,143.7,143.63,0.02]
[1642168165051,10.4406,143.7,143.63,0.02]
[1642168165251,10.4398,143.71,143.63,0.02]
[1642168165451,9.99,143.74,143.63,0.02]
[1642168165452,9.99,143.76,143.63,0.02]
[1642168165850,10.24063073,143.75,143.64,25.84322227]
[1642168166053,10.24063073,143.75,143.64,32.35322227]
[1642168166355,45.03893073,143.75,143.64,56.82082227]
[1642168166552,10.4389,143.72,143.64,56.82082227]
[1642168166751,11.95301328,143.72,143.64,56.82082227]
[1642168166955,11.95301328,143.72,143.64,30.9776]
[1642168167154,11.95301328,143.72,143.64,30.7176]
[1642168167853,11.95301328,143.72,143.63,0.02]
[1642168168052,10.4442,143.67,143.63,0.02]
[1642168168352,10.24063073,143.66,143.63,0.02]
[1642168169153,10.446,143.65,143.63,0.02]
[1642168169359,10.446,143.65,143.59,23.4194]
[1642168169557,10.446,143.65,143.58,0.17412423]
[1642168169755,13.231,143.65,143.58,0.17412423]
[1642168170455,23.221,143.65,143.58,0.17412423]
[1642168172659,20.436,143.65,143.58,0.17412423]
[1642168173758,23.221,143.65,143.58,0.17412423]
[1642168174759,20.436,143.65,143.58,0.17412423]
[1642168176659,2.785,143.64,143.58,0.17412423]
[1642168176859,10.4466,143.62,143.58,0.17412423]
[1642168177262,1.51411328,143.61,143.58,0.17412423]
[1642168178159,11.96211328,143.61,143.58,0.17412423]
[1642168178761,1.51411328,143.61,143.58,0.17412423]
[1642168178960,2.785,143.64,143.58,0.17412423]
[1642168179161,12.775,143.65,143.58,0.17412423]
[1642168179865,9.11178532,143.64,143.58,0.17412423]
[1642168180494,10.4465,143.63,143.58,0.17412423]
[1642168181665,13.2315,143.63,143.58,0.17412423]
[1642168182764,9.11178532,143.64,143.58,0.17412423]
[1642168185177,19.55728532,143.64,143.58,0.17412423]
[1642168185571,2.785,143.63,143.58,0.17412423]
[1642168187370,10.4482,143.61,143.58,0.17412423]
[1642168187571,12.775,143.6,143.58,0.17412423]
[1642168187772,12.775,143.6,143.51,0.02]
[1642168187773,9.99,143.6,143.51,0.02]
[1642168187999,12.776,143.6,143.51,0.02]
[1642168188371,2.64295869,143.59,143.51,0.02]
[1642168188571,13.09285869,143.59,143.51,0.02]
[1642168188771,13.09285869,143.59,143.49,24.74640271]
[1642168188972,13.09285869,143.59,143.49,30.74640271]
[1642168189370,13.09285869,143.59,143.49,25.25640271]
[1642168189572,10.4499,143.59,143.49,35.70640271]
[1642168189774,2.786,143.6,143.49,43.22815862]
[1642168189972,9.99,143.62,143.49,43.22815862]
[1642168190173,9.99,143.62,143.5,24.0778]
[1642168190377,9.99,143.66,143.51,9.99]
[1642168190573,2.785,143.65,143.54,10.4459]
[1642168190775,2.785,143.65,143.55,23.12359296]
[1642168190973,2.785,143.65,143.52,36.33745591]
[1642168191176,13.2294,143.65,143.54,6.25]
[1642168191378,13.2294,143.65,143.53,24.2479]
[1642168191574,82.7294,143.65,143.53,24.4979]
[1642168191776,9.99,143.64,143.53,24.2479]
[1642168191975,2.23357352,143.62,143.43,9.99]
[1642168192177,2.23357352,143.62,143.41,1.598e-05]
[1642168192178,10.4497,143.58,143.41,1.598e-05]
[1642168192376,12.777,143.57,143.41,1.598e-05]
[1642168192575,9.99,143.56,143.41,1.598e-05]
[1642168192776,2.787,143.55,143.41,1.598e-05]
[1642168192979,34.8558,143.52,143.41,1.598e-05]
[1642168193176,34.8558,143.52,143.41,27.20087029]
[1642168193578,13.68945754,143.5,143.41,26.20087029]
[1642168193778,13.68945754,143.5,143.4,541.53026477]
[1642168193779,12.777,143.49,143.4,531.75147019]
[1642168193977,47.6391,143.49,143.4,531.75147019]
[1642168194178,12.777,143.49,143.35,23.7869]
[1642168194778,10.4587,143.46,143.36,27.81569538]
[1642168194978,10.4587,143.46,143.36,28.06569538]
[1642168195611,10.4587,143.46,143.37,7.97367531]
[1642168196012,10.4575,143.47,143.37,7.97367531]
[1642168196305,9.99,143.49,143.37,7.97367531]
[1642168196706,9.99,143.49,143.38,25.46279189]
[1642168196909,22.96650648,143.53,143.38,25.46279189]
[1642168197109,10.4539,143.52,143.39,47.5429]
[1642168197307,9.99,143.57,143.42,0.32113682]
[1642168197509,2.787,143.62,143.46,0.32291322]
[1642168197707,9.99,143.65,143.5,0.31728097]
[1642168197908,2.786,143.64,143.52,10.4466]
[1642168198111,10.62536889,143.66,143.53,27.27204584]
[1642168198310,10.62536889,143.66,143.53,33.26004584]
[1642168198508,12.775,143.67,143.53,41.29180175]
[1642168198910,12.775,143.67,143.53,51.28180175]
[1642168199309,12.775,143.67,143.59,10.4406]
[1642168199512,12.775,143.67,143.59,39.16596849]
[1642168199912,2.785,143.67,143.59,39.16596849]
[1642168200311,2.785,143.67,143.59,10.4406]
[1642168200512,2.783,143.68,143.55,9.99]
[1642168200714,2.783,143.68,143.55,10.24]
[1642168201114,2.683,143.68,143.55,10.5]
[1642168201313,2.683,143.68,143.56,31.39886382]
[1642168201712,13.1255,143.68,143.56,42.10246382]
[1642168201913,13.1255,143.68,143.56,41.84246382]
[1642168202212,13.1255,143.68,143.55,9.99]
[1642168202413,19.1255,143.68,143.55,9.99]
[1642168203118,19.1255,143.68,143.55,35.79782074]
[1642168203720,29.1155,143.68,143.55,9.99]
[1642168203919,29.1155,143.68,143.55,15.99]
[1642168204121,29.1155,143.68,143.55,6.0]
[1642168204521,29.1155,143.68,143.5,182.41175591]
[1642168204721,29.1155,143.68,143.5,143.58612992]
[1642168204922,29.1155,143.68,143.5,142.06437401]
[1642168205121,29.1155,143.68,143.5,105.39]
[1642168205321,10.4502,143.59,143.5,105.39]
[1642168205523,10.4502,143.59,143.5,9.99]
[1642168205728,10.4502,143.59,143.47,49.1169]
[1642168206128,1.93521777,143.58,143.47,49.1169]
[1642168206328,2.786,143.57,143.47,49.1169]
[1642168206528,2.786,143.57,143.46,41.95301992]
[1642168206961,2.786,143.57,143.46,42.20301992]
[1642168207366,10.4528,143.54,143.46,42.20301992]
[1642168208567,10.4528,143.54,143.46,10.24]
[1642168208762,10.4528,143.54,143.43,120.0598]
[1642168208961,13.2398,143.54,143.43,24.6598]
[1642168209163,23.2298,143.54,143.43,24.6598]
[1642168209363,23.2298,143.54,143.39,22.9505]
[1642168209564,29.2298,143.54,143.39,23.2005]
[1642168209964,29.2298,143.54,143.39,29.2005]
[1642168210171,29.2298,143.54,143.39,30.719774]
[1642168211466,29.2298,143.54,143.39,30.979774]
[1642168212065,29.2298,143.54,143.39,40.719774]
[1642168213469,29.2298,143.54,143.39,40.969774]
[1642168213871,29.2298,143.54,143.39,40.719774]
[1642168214070,29.2298,143.54,143.39,40.969774]
[1642168214970,10.4581,143.47,143.39,40.459774]
[1642168215174,11.29951026,143.46,143.39,17.509274]
[1642168215571,11.29951026,143.46,143.39,15.99]
[1642168216476,10.4592,143.45,143.39,15.99]
[1642168217272,10.4592,143.45,143.39,9.99]
[1642168217472,10.4592,143.45,143.37,24.8684]
[1642168217675,10.4592,143.45,143.37,25.1184]
[1642168217872,10.4592,143.45,143.37,24.8684]
[1642168218472,10.4592,143.45,143.37,30.8684]
[1642168218972,10.4592,143.45,143.37,6.0]
[1642168219174,10.4592,143.45,143.35,34.2628]
[1642168219574,10.4592,143.45,143.35,9.99]
[1642168220074,2.789,143.44,143.35,9.99]
[1642168220274,10.4633,143.4,143.35,9.99]
[1642168220474,10.48612371,143.39,143.32,147.36486929]
[1642168220674,10.48612371,143.39,143.32,123.63526929]
[1642168220875,10.48612371,143.39,143.32,119.6971]
[1642168221283,20.95022371,143.39,143.32,95.4]
[1642168221475,20.95022371,143.39,143.31,9.99]
[1642168221675,20.95022371,143.39,143.32,1.519274]
[1642168222075,20.95022371,143.39,143.32,7.769274]
[1642168222674,20.95022371,143.39,143.32,6.25]
[1642168222875,10.4641,143.39,143.32,6.25]
[1642168223075,10.4641,143.39,143.32,7.769274]
[1642168223275,10.4641,143.39,143.32,6.0]
[1642168223476,10.4641,143.39,143.3,24.7332]
[1642168223676,10.4641,143.39,143.31,0.25]
[1642168224480,10.4641,143.39,143.31,31.04224825]
[1642168224881,10.4641,143.39,143.31,37.04224825]
[1642168225181,10.4641,143.39,143.31,38.56152225]
[1642168226013,37.6654,143.44,143.33,69.5]
[1642168226226,2.79,143.44,143.34,9.99]
[1642168226416,2.789,143.48,143.34,11.509274]
[1642168226613,2.789,143.48,143.34,11.759274]
[1642168226814,34.157,143.51,143.35,1.519274]
[1642168226815,2.789,143.5,143.35,1.519274]
[1642168227012,12.4621821,143.47,143.35,40.4714359]